[Event "XXXIX Benasque Open 2019"]
[Site "Benasque"]
[Date "2019.07.12"]
[Round "9.1"]
[White "Hovhannisyan, Robert"]
[Black "Indjic, Aleksandar"]
[Result "1-0"]
[ECO "C78"]
[WhiteElo "2640"]
[BlackElo "2604"]
[Annotator "ChessBase"]
[PlyCount "95"]
[EventDate "2019.07.04"]
[EventType "swiss"]
[EventCountry "ESP"]
[SourceTitle "playchess.com"]
[Source "ChessBase"]
[SourceQuality "1"]
[TimeControl "5400+30"]

1. e4 {[%emt 0:00:00]} e5 {[%emt 0:04:26]} 2. Nf3 {[%emt 0:00:00]} Nc6 {[%emt 0:00:20]} 3. Bb5 {[%emt 0:00:01]} a6 {[%emt 0:00:18]} 4. Ba4 {[%emt 0:00:07]} Nf6 {[%emt 0:00:08]} 5. O-O {[%emt 0:00:15]} b5 {[%emt 0:00:48]} 6. Bb3 {[%emt 0:00:05]} Bb7 {[%emt 0:00:06]} 7. d3 {[%emt 0:02:53]} Be7 {[%emt 0:01:21]} 8. Nc3 {[%emt 0:02:19]} O-O {[%emt 0:00:30]} 9. Re1 {[%emt 0:05:04]} d6 {[%emt 0:01:44]} 10. a3 {[%emt 0:04:04]} Qd7 {[%emt 0:02:39]} 11. Bd2 {[%emt 0:01:31]} Rac8 {[%emt 0:09:24]} 12. a4 {[%emt 0:15:59]} Nd4 {[%emt 0:11:39]} 13. Nxd4 {[%emt 0:02:12]} exd4 {[%emt 0:00:07]} 14. Nd5 {[%emt 0:03:55]} Nxd5 {[%emt 0:01:24]} 15. Bxd5 {[%emt 0:00:54]} c6 {[%emt 0:03:29]} 16. Bb3 {[%emt 0:03:21]} Bf6 {[%emt 0:06:19]} 17. Qh5 {[%emt 0:09:35]} g6 {[%emt 0:10:35]} 18. Qf3 {[%emt 0:00:06]} Bg7 {[%emt 0:00:12]} 19. axb5 {[%emt 0:01:52]} axb5 {[%emt 0:00:07]} 20. Ra7 {[%emt 0:01:10]} Ra8 {[%emt 0:05:20]} 21. Rea1 {[%emt 0:00:31]} Rxa7 {[%emt 0:00:11]} 22. Rxa7 {[%emt 0:00:04]} Qc7 {[%emt 0:00:10]} 23. h4 {[%emt 0:03:52]} Qb8 {[%emt 0:03:52]} 24. Ra5 {[%emt 0:02:10]} Qc7 {[%emt 0:06:18]} 25. h5 {[%emt 0:01:14]} Ra8 {[%emt 0:00:23]} 26. Rxa8+ {[%emt 0:02:48]} Bxa8 {[%emt 0:00:02]} 27. Bf4 {[%emt 0:02:45]} Qd7 {[%emt 0:21:53]} 28. Bxd6 {[%emt 0:01:19]} Bb7 {[%emt 0:00:04]} 29. Qg3 {[%emt 0:01:56]} gxh5 {[%emt 0:00:23]} 30. e5 {[%emt 0:07:28]} Bc8 {[%emt 0:06:51]} 31. Qf4 {[%emt 0:01:44]} Qe8 {[%emt 0:00:14]} 32. Qxd4 {[%emt 0:01:16]} Be6 {[%emt 0:00:05]} 33. Bxe6 {[%emt 0:00:51]} fxe6 {[%emt 0:00:04]} 34. Qe4 {[%emt 0:01:37]} Qa8 {[%emt 0:00:17]} 35. Qf3 {[%emt 0:02:04]} Qe8 {[%emt 0:01:21]} 36. c4 {[%emt 0:01:20]} Kh8 {[%emt 0:00:08]} 37. b3 {[%emt 0:01:26]} Kg8 {[%emt 0:00:06]} 38. cxb5 {[%emt 0:00:55]} cxb5 {[%emt 0:00:02]} 39. d4 {[%emt 0:00:10]} h4 {[%emt 0:03:46]} 40. Qg4 {[%emt 0:01:17]} Qg6 {[%emt 0:00:23]} 41. Qxh4 {[%emt 0:03:55]} Qb1+ {[%emt 0:00:05]} 42. Kh2 {[%emt 0:00:03]} Qxb3 {[%emt 0:00:05]} 43. Qd8+ {[%emt 0:00:34]} Kf7 {[%emt 0:00:01]} 44. Qe7+ {[%emt 0:00:16]} Kg6 {[%emt 0:00:02]} 45. Qe8+ {[%emt 0:00:09]} Kh6 {[%emt 0:01:09]} 46. g4 {[%emt 0:00:16]} Kg5 {[%emt 0:00:48]} 47. Qh5+ {[%emt 0:00:26]} Kf4 {[%emt 0:00:06]} 48. Qf7+ {[%emt 0:00:05]} 1-0

[Event "XXXIX Benasque Open 2019"]
[Site "Benasque"]
[Date "2019.07.12"]
[Round "9.2"]
[White "Vazquez Igarza, Renier"]
[Black "Bartel, Mateusz"]
[Result "1/2-1/2"]
[ECO "A40"]
[WhiteElo "2558"]
[BlackElo "2600"]
[Annotator "ChessBase"]
[PlyCount "32"]
[EventDate "2019.07.04"]
[EventType "swiss"]
[EventCountry "ESP"]
[SourceTitle "playchess.com"]
[Source "ChessBase"]
[SourceQuality "1"]
[TimeControl "5400+30"]

1. d4 {[%emt 0:01:13]} e6 {[%emt 0:00:00]} 2. c4 {[%emt 0:01:31]} b6 {[%emt 0:00:00]} 3. Nf3 {[%emt 0:00:35]} Bb7 {[%emt 0:00:22]} 4. g3 {[%emt 0:00:40]} Bb4+ {[%emt 0:00:23]} 5. Bd2 {[%emt 0:00:24]} Bxf3 {[%emt 0:00:52]} 6. exf3 {[%emt 0:00:11]} Bxd2+ {[%emt 0:00:07]} 7. Qxd2 {[%emt 0:00:06]} d5 {[%emt 0:00:25]} 8. Nc3 {[%emt 0:01:06]} Ne7 {[%emt 0:07:04]} 9. O-O-O {[%emt 0:04:23]} O-O {[%emt 0:01:40]} 10. h4 {[%emt 0:00:48]} Nbc6 {[%emt 0:01:26]} 11. h5 {[%emt 0:01:38]} h6 {[%emt 0:22:27]} 12. g4 {[%emt 0:07:02]} Kh8 {[%emt 0:00:03]} 13. Rg1 {[%emt 0:02:52]} f6 {[%emt 0:02:12]} 14. f4 {[%emt 0:03:00]} Qd6 {[%emt 0:01:13]} 15. Qe3 {[%emt 0:06:41]} Rad8 {[%emt 0:05:10]} 16. Kb1 {[%emt 0:07:12]} dxc4 {[%emt 0:13:17]} 1/2-1/2

[Event "XXXIX Benasque Open 2019"]
[Site "Benasque"]
[Date "2019.07.12"]
[Round "9.4"]
[White "Cruz, Cristhian"]
[Black "Ter-Sahakyan, Samvel"]
[Result "0-1"]
[ECO "E47"]
[WhiteElo "2562"]
[BlackElo "2625"]
[Annotator "ChessBase"]
[PlyCount "108"]
[EventDate "2019.07.04"]
[EventType "swiss"]
[EventCountry "ESP"]
[SourceTitle "playchess.com"]
[Source "ChessBase"]
[SourceQuality "1"]
[TimeControl "5400+30"]

1. d4 {[%emt 0:00:07]} Nf6 {[%emt 0:00:00]} 2. c4 {[%emt 0:00:08]} e6 {[%emt 0:00:00]} 3. Nc3 {[%emt 0:00:22]} Bb4 {[%emt 0:00:00]} 4. e3 {[%emt 0:00:06]} O-O {[%emt 0:00:08]} 5. Bd3 {[%emt 0:00:20]} b6 {[%emt 0:02:27]} 6. Nge2 {[%emt 0:01:17]} d5 {[%emt 0:02:12]} 7. cxd5 {[%emt 0:03:13]} exd5 {[%emt 0:00:11]} 8. a3 {[%emt 0:01:11]} Bd6 {[%emt 0:01:07]} 9. b4 {[%emt 0:00:54]} Bb7 {[%emt 0:02:54]} 10. O-O {[%emt 0:03:15]} Nbd7 {[%emt 0:01:39]} 11. Rb1 {[%emt 0:03:13]} Re8 {[%emt 0:05:24]} 12. f3 {[%emt 0:01:27]} Nf8 {[%emt 0:11:23]} 13. Nb5 {[%emt 0:06:23]} Be7 {[%emt 0:05:52]} 14. Kh1 {[%emt 0:08:46]} a6 {[%emt 0:13:13]} 15. Nbc3 {[%emt 0:00:10]} Bd6 {[%emt 0:00:18]} 16. Bd2 {[%emt 0:04:01]} Ng6 {[%emt 0:01:19]} 17. Ng3 {[%emt 0:12:27]} Bc8 {[%emt 0:10:56]} 18. Nf5 {[%emt 0:12:11]} Bxf5 {[%emt 0:02:10]} 19. Bxf5 {[%emt 0:00:20]} c5 {[%emt 0:00:13]} 20. bxc5 {[%emt 0:11:18]} bxc5 {[%emt 0:00:05]} 21. Qb3 {[%emt 0:00:50]} cxd4 {[%emt 0:02:43]} 22. exd4 {[%emt 0:00:05]} Bf4 {[%emt 0:00:33]} 23. Qc2 {[%emt 0:09:12]} Qd6 {[%emt 0:03:35]} 24. Bxf4 {[%emt 0:05:22]} Nxf4 {[%emt 0:02:11]} 25. Rb3 {[%emt 0:06:02]} g6 {[%emt 0:04:11]} 26. Bd3 {[%emt 0:00:04]} Rab8 {[%emt 0:00:14]} 27. Rxb8 {[%emt 0:01:20]} Rxb8 {[%emt 0:00:23]} 28. Ne2 {[%emt 0:00:42]} Nxe2 {[%emt 0:02:01]} 29. Qxe2 {[%emt 0:00:33]} Qxa3 {[%emt 0:04:31]} 30. Bxa6 {[%emt 0:00:22]} Rb2 {[%emt 0:03:07]} 31. Qd3 {[%emt 0:00:20]} Qxd3 {[%emt 0:01:22]} 32. Bxd3 {[%emt 0:00:04]} Rd2 {[%emt 0:00:06]} 33. Bb5 {[%emt 0:00:10]} Rxd4 {[%emt 0:00:06]} 34. Rc1 {[%emt 0:00:08]} Rd2 {[%emt 0:02:32]} 35. Bf1 {[%emt 0:00:05]} h5 {[%emt 0:01:21]} 36. Rc8+ {[%emt 0:00:41]} Kg7 {[%emt 0:00:05]} 37. Rd8 {[%emt 0:00:03]} h4 {[%emt 0:01:01]} 38. Kg1 {[%emt 0:00:06]} Nh5 {[%emt 0:00:32]} 39. Rd6 {[%emt 0:01:12]} Nf4 {[%emt 0:00:58]} 40. g3 {[%emt 0:00:45]} hxg3 {[%emt 0:01:00]} 41. hxg3 {[%emt 0:00:02]} Nh5 {[%emt 0:00:54]} 42. Bc4 {[%emt 0:00:10]} d4 {[%emt 0:03:38]} 43. Rd7 {[%emt 0:00:08]} Nxg3 {[%emt 0:00:09]} 44. Bxf7 {[%emt 0:00:14]} Kf6 {[%emt 0:02:02]} 45. Bc4 {[%emt 0:00:30]} g5 {[%emt 0:00:52]} 46. Rd5 {[%emt 0:01:22]} Nf5 {[%emt 0:01:07]} 47. Bb5 {[%emt 0:00:17]} Ne3 {[%emt 0:03:17]} 48. Rd8 {[%emt 0:00:15]} Ke5 {[%emt 0:00:46]} 49. Rf8 {[%emt 0:00:19]} d3 {[%emt 0:01:44]} 50. Kh1 {[%emt 0:02:02]} Rd1+ {[%emt 0:02:32]} 51. Kh2 {[%emt 0:00:06]} d2 {[%emt 0:00:09]} 52. Re8+ {[%emt 0:00:42]} Kf4 {[%emt 0:01:20]} 53. Rf8+ {[%emt 0:00:32]} Nf5 {[%emt 0:00:52]} 54. Rd8 {[%emt 0:00:08]} Rb1 {[%emt 0:01:11]} 0-1

[Event "XXXIX Benasque Open 2019"]
[Site "Benasque"]
[Date "2019.07.12"]
[Round "9.5"]
[White "Markus, Robert"]
[Black "Sosa, Tomas"]
[Result "1-0"]
[ECO "E15"]
[WhiteElo "2595"]
[BlackElo "2516"]
[Annotator "ChessBase"]
[PlyCount "111"]
[EventDate "2019.07.04"]
[EventType "swiss"]
[EventCountry "ESP"]
[SourceTitle "playchess.com"]
[Source "ChessBase"]
[SourceQuality "1"]
[TimeControl "5400+30"]

1. d4 {[%emt 0:00:00]} Nf6 {[%emt 0:09:43]} 2. c4 {[%emt 0:00:00]} e6 {[%emt 0:00:41]} 3. Nf3 {[%emt 0:00:22]} b6 {[%emt 0:00:15]} 4. g3 {[%emt 0:00:07]} Bb7 {[%emt 0:00:09]} 5. Bg2 {[%emt 0:00:07]} g6 {[%emt 0:00:17]} 6. O-O {[%emt 0:05:51]} Bg7 {[%emt 0:00:25]} 7. Bf4 {[%emt 0:02:02]} O-O {[%emt 0:01:08]} 8. Qc2 {[%emt 0:01:51]} Nh5 {[%emt 0:12:21]} 9. Bg5 {[%emt 0:03:16]} f6 {[%emt 0:00:57]} 10. Bd2 {[%emt 0:02:05]} f5 {[%emt 0:00:36]} 11. Nc3 {[%emt 0:00:07]} Nf6 {[%emt 0:08:45]} 12. Rad1 {[%emt 0:07:07]} Re8 {[%emt 0:06:24]} 13. b4 {[%emt 0:11:19]} Ne4 {[%emt 0:15:52]} 14. Ne5 {[%emt 0:08:54]} Nxc3 {[%emt 0:07:50]} 15. Bxc3 {[%emt 0:02:56]} Bxg2 {[%emt 0:01:12]} 16. Kxg2 {[%emt 0:00:06]} d6 {[%emt 0:00:08]} 17. Nd3 {[%emt 0:03:44]} Qd7 {[%emt 0:04:00]} 18. b5 {[%emt 0:16:39]} c6 {[%emt 0:04:14]} 19. Qb3 {[%emt 0:00:08]} a6 {[%emt 0:10:15]} 20. a4 {[%emt 0:00:56]} Ra7 {[%emt 0:03:36]} 21. Kg1 {[%emt 0:04:29]} cxb5 {[%emt 0:00:06]} 22. cxb5 {[%emt 0:00:08]} Rc8 {[%emt 0:01:50]} 23. Rc1 {[%emt 0:06:40]} Rac7 {[%emt 0:08:22]} 24. bxa6 {[%emt 0:05:57]} Ra7 {[%emt 0:00:10]} 25. Qxb6 {[%emt 0:11:03]} Rxa6 {[%emt 0:00:12]} 26. Qb3 {[%emt 0:00:05]} Re8 {[%emt 0:02:34]} 27. a5 {[%emt 0:01:18]} Qa7 {[%emt 0:00:27]} 28. e3 {[%emt 0:03:36]} Nc6 {[%emt 0:00:04]} 29. Nb4 {[%emt 0:01:22]} Nxb4 {[%emt 0:01:05]} 30. Bxb4 {[%emt 0:00:04]} d5 {[%emt 0:00:45]} 31. Bc5 {[%emt 0:00:24]} Qd7 {[%emt 0:00:33]} 32. Bb6 {[%emt 0:00:08]} Rb8 {[%emt 0:00:31]} 33. Qd3 {[%emt 0:00:31]} Raxb6 {[%emt 0:00:29]} 34. axb6 {[%emt 0:00:05]} Rxb6 {[%emt 0:00:04]} 35. Rb1 {[%emt 0:00:07]} Rc6 {[%emt 0:00:40]} 36. Rfc1 {[%emt 0:00:50]} Bf8 {[%emt 0:00:45]} 37. Kg2 {[%emt 0:00:56]} Rxc1 {[%emt 0:00:04]} 38. Rxc1 {[%emt 0:00:02]} Kf7 {[%emt 0:00:56]} 39. Qa6 {[%emt 0:00:09]} Be7 {[%emt 0:00:28]} 40. Qa8 {[%emt 0:00:18]} Bd8 {[%emt 0:00:35]} 41. Rb1 {[%emt 0:00:16]} Kf6 {[%emt 0:00:30]} 42. Rb7 {[%emt 0:00:18]} Qd6 {[%emt 0:00:29]} 43. Rxh7 {[%emt 0:00:32]} g5 {[%emt 0:00:22]} 44. Qc8 {[%emt 0:00:47]} Qf8 {[%emt 0:00:39]} 45. Rd7 {[%emt 0:00:33]} Be7 {[%emt 0:00:04]} 46. Qc7 {[%emt 0:01:20]} g4 {[%emt 0:00:13]} 47. Rxe7 {[%emt 0:00:48]} Qxe7 {[%emt 0:00:05]} 48. Qxe7+ {[%emt 0:00:03]} Kxe7 {[%emt 0:00:08]} 49. h4 {[%emt 0:00:02]} gxh3+ {[%emt 0:00:09]} 50. Kxh3 {[%emt 0:00:03]} Kf6 {[%emt 0:00:15]} 51. Kh4 {[%emt 0:00:03]} Kg6 {[%emt 0:00:05]} 52. f3 {[%emt 0:00:06]} Kf6 {[%emt 0:02:58]} 53. Kh5 {[%emt 0:00:22]} e5 {[%emt 0:00:33]} 54. dxe5+ {[%emt 0:00:37]} Kxe5 {[%emt 0:00:04]} 55. Kg5 {[%emt 0:00:03]} Ke6 {[%emt 0:00:09]} 56. f4 {[%emt 0:00:03]} 1-0

[Event "XXXIX Benasque Open 2019"]
[Site "Benasque"]
[Date "2019.07.12"]
[Round "9.6"]
[White "Piorun, Kacper"]
[Black "Jansa, Vlastimil"]
[Result "1-0"]
[ECO "B26"]
[WhiteElo "2656"]
[BlackElo "2457"]
[Annotator "ChessBase"]
[PlyCount "87"]
[EventDate "2019.07.04"]
[EventType "swiss"]
[EventCountry "ESP"]
[SourceTitle "playchess.com"]
[Source "ChessBase"]
[SourceQuality "1"]
[TimeControl "5400+30"]

1. g3 {[%emt 0:00:00]} g6 {[%emt 0:00:00]} 2. Bg2 {[%emt 0:00:00]} Bg7 {[%emt 0:00:08]} 3. e4 {[%emt 0:00:00]} c5 {[%emt 0:01:08]} 4. Nc3 {[%emt 0:00:00]} Nc6 {[%emt 0:00:48]} 5. d3 {[%emt 0:00:00]} d6 {[%emt 0:00:58]} 6. Be3 {[%emt 0:00:20]} e5 {[%emt 0:01:44]} 7. Nh3 {[%emt 0:01:03]} Nge7 {[%emt 0:01:48]} 8. O-O {[%emt 0:01:07]} O-O {[%emt 0:01:39]} 9. f4 {[%emt 0:00:55]} Nd4 {[%emt 0:01:44]} 10. Qd2 {[%emt 0:01:09]} Bg4 {[%emt 0:07:33]} 11. Kh1 {[%emt 0:13:27]} Qd7 {[%emt 0:01:43]} 12. Ng1 {[%emt 0:00:09]} Rae8 {[%emt 0:12:35]} 13. Rae1 {[%emt 0:06:26]} b6 {[%emt 0:03:46]} 14. Nd1 {[%emt 0:17:23]} Be6 {[%emt 0:15:11]} 15. c3 {[%emt 0:06:34]} Ndc6 {[%emt 0:00:38]} 16. Nf3 {[%emt 0:01:22]} d5 {[%emt 0:13:49]} 17. exd5 {[%emt 0:07:39]} Nxd5 {[%emt 0:06:45]} 18. Ng5 {[%emt 0:00:15]} exf4 {[%emt 0:03:27]} 19. gxf4 {[%emt 0:00:33]} Bf5 {[%emt 0:02:03]} 20. Ne4 {[%emt 0:01:46]} Re7 {[%emt 0:01:57]} 21. Bf2 {[%emt 0:03:33]} Rfe8 {[%emt 0:01:13]} 22. Bh4 {[%emt 0:01:26]} Re6 {[%emt 0:00:12]} 23. a3 {[%emt 0:04:44]} Nf6 {[%emt 0:01:34]} 24. Nxf6+ {[%emt 0:06:57]} Bxf6 {[%emt 0:00:39]} 25. Bxf6 {[%emt 0:00:29]} Rxf6 {[%emt 0:00:17]} 26. Ne3 {[%emt 0:03:03]} Ne7 {[%emt 0:05:02]} 27. d4 {[%emt 0:00:39]} cxd4 {[%emt 0:00:36]} 28. cxd4 {[%emt 0:00:06]} Rd8 {[%emt 0:05:34]} 29. d5 {[%emt 0:00:48]} Bh3 {[%emt 0:00:41]} 30. f5 {[%emt 0:09:03]} Bxg2+ {[%emt 0:00:48]} 31. Qxg2 {[%emt 0:00:01]} Nxd5 {[%emt 0:05:47]} 32. Ng4 {[%emt 0:00:06]} Rd6 {[%emt 0:01:02]} 33. Ne5 {[%emt 0:01:23]} Qe8 {[%emt 0:02:34]} 34. Nxg6 {[%emt 0:03:01]} hxg6 {[%emt 0:00:51]} 35. Rxe8+ {[%emt 0:00:03]} Rxe8 {[%emt 0:00:04]} 36. Qf3 {[%emt 0:03:08]} Nf6 {[%emt 0:00:23]} 37. Qf4 {[%emt 0:02:08]} Red8 {[%emt 0:00:12]} 38. Qh6 {[%emt 0:02:40]} Nd7 {[%emt 0:00:51]} 39. fxg6 {[%emt 0:00:26]} fxg6 {[%emt 0:00:45]} 40. Re1 {[%emt 0:02:56]} Nf8 {[%emt 0:00:13]} 41. Qe3 {[%emt 0:00:26]} R8d7 {[%emt 0:00:34]} 42. Rf1 {[%emt 0:00:15]} Kg7 {[%emt 0:00:41]} 43. Qe5+ {[%emt 0:00:09]} Kg8 {[%emt 0:00:07]} 44. Qe8 {[%emt 0:00:06]} 1-0

[Event "XXXIX Benasque Open 2019"]
[Site "Benasque"]
[Date "2019.07.12"]
[Round "9.7"]
[White "Gines Esteo, Pedro Antonio"]
[Black "Banusz, Tamas"]
[Result "0-1"]
[ECO "D12"]
[WhiteElo "2404"]
[BlackElo "2626"]
[Annotator "ChessBase"]
[PlyCount "66"]
[EventDate "2019.07.04"]
[EventType "swiss"]
[EventCountry "ESP"]
[SourceTitle "playchess.com"]
[Source "ChessBase"]
[SourceQuality "1"]
[TimeControl "5400+30"]

1. d4 {[%emt 0:00:00]} d5 {[%emt 0:00:00]} 2. Nf3 {[%emt 0:00:02]} Nf6 {[%emt 0:00:00]} 3. c4 {[%emt 0:00:04]} c6 {[%emt 0:00:00]} 4. e3 {[%emt 0:00:20]} Bf5 {[%emt 0:00:05]} 5. Nc3 {[%emt 0:00:07]} e6 {[%emt 0:00:06]} 6. Nh4 {[%emt 0:00:22]} Bg6 {[%emt 0:00:06]} 7. Qb3 {[%emt 0:00:33]} Qc7 {[%emt 0:00:15]} 8. Nxg6 {[%emt 0:00:31]} hxg6 {[%emt 0:00:05]} 9. g3 {[%emt 0:00:08]} Nbd7 {[%emt 0:00:29]} 10. Bg2 {[%emt 0:00:06]} Be7 {[%emt 0:00:58]} 11. O-O {[%emt 0:00:08]} O-O {[%emt 0:01:28]} 12. cxd5 {[%emt 0:00:49]} exd5 {[%emt 0:00:13]} 13. f3 {[%emt 0:08:00]} Qb6 {[%emt 0:01:08]} 14. Qc2 {[%emt 0:07:26]} Rfd8 {[%emt 0:05:46]} 15. Bd2 {[%emt 0:05:24]} c5 {[%emt 0:06:34]} 16. Be1 {[%emt 0:07:56]} cxd4 {[%emt 0:06:47]} 17. Na4 {[%emt 0:02:15]} Qa6 {[%emt 0:03:07]} 18. exd4 {[%emt 0:00:32]} Rac8 {[%emt 0:01:22]} 19. Nc3 {[%emt 0:00:52]} Nb6 {[%emt 0:03:41]} 20. Rf2 {[%emt 0:04:07]} Nc4 {[%emt 0:02:00]} 21. Qe2 {[%emt 0:01:10]} Re8 {[%emt 0:03:06]} 22. b3 {[%emt 0:09:27]} Bb4 {[%emt 0:03:33]} 23. Qf1 {[%emt 0:02:11]} Rxe1 {[%emt 0:15:21]} 24. Rxe1 {[%emt 0:11:29]} Bxc3 {[%emt 0:00:42]} 25. bxc4 {[%emt 0:00:59]} Bxd4 {[%emt 0:04:01]} 26. Kh1 {[%emt 0:05:24]} Bxf2 {[%emt 0:00:22]} 27. Qxf2 {[%emt 0:00:02]} dxc4 {[%emt 0:00:17]} 28. f4 {[%emt 0:00:38]} c3 {[%emt 0:01:04]} 29. Qc2 {[%emt 0:02:26]} b5 {[%emt 0:00:53]} 30. Bh3 {[%emt 0:03:04]} Qc6+ {[%emt 0:00:26]} 31. Kg1 {[%emt 0:00:09]} Rd8 {[%emt 0:00:45]} 32. Rc1 {[%emt 0:00:50]} Rd2 {[%emt 0:00:59]} 33. Qxc3 {[%emt 0:00:27]} Rd1+ {[%emt 0:00:07]} 0-1

[Event "XXXIX Benasque Open 2019"]
[Site "Benasque"]
[Date "2019.07.12"]
[Round "9.8"]
[White "Deac, Bogdan-Daniel"]
[Black "Raja Harshit"]
[Result "1-0"]
[ECO "E06"]
[WhiteElo "2621"]
[BlackElo "2434"]
[Annotator "ChessBase"]
[PlyCount "105"]
[EventDate "2019.07.04"]
[EventType "swiss"]
[EventCountry "ESP"]
[SourceTitle "playchess.com"]
[Source "ChessBase"]
[SourceQuality "1"]
[TimeControl "5400+30"]

1. d4 {[%emt 0:00:00]} Nf6 {[%emt 0:00:00]} 2. c4 {[%emt 0:00:00]} e6 {[%emt 0:00:06]} 3. g3 {[%emt 0:00:22]} d5 {[%emt 0:00:25]} 4. Bg2 {[%emt 0:00:02]} Be7 {[%emt 0:00:11]} 5. Nf3 {[%emt 0:00:04]} O-O {[%emt 0:00:14]} 6. O-O {[%emt 0:00:45]} dxc4 {[%emt 0:00:43]} 7. Qc2 {[%emt 0:00:00]} a6 {[%emt 0:01:08]} 8. a4 {[%emt 0:00:00]} Bd7 {[%emt 0:00:19]} 9. Qxc4 {[%emt 0:00:12]} Bc6 {[%emt 0:00:05]} 10. Bg5 {[%emt 0:00:04]} Bd5 {[%emt 0:04:33]} 11. Qc2 {[%emt 0:00:19]} Be4 {[%emt 0:04:09]} 12. Qc1 {[%emt 0:00:01]} h6 {[%emt 0:00:50]} 13. Bxf6 {[%emt 0:00:03]} Bxf6 {[%emt 0:00:07]} 14. Nbd2 {[%emt 0:00:07]} Bxf3 {[%emt 0:01:27]} 15. Nxf3 {[%emt 0:00:30]} a5 {[%emt 0:07:57]} 16. Qc3 {[%emt 0:00:07]} c6 {[%emt 0:05:03]} 17. Rad1 {[%emt 0:07:11]} Nd7 {[%emt 0:04:21]} 18. Qc2 {[%emt 0:07:39]} Qb6 {[%emt 0:06:05]} 19. Nd2 {[%emt 0:04:29]} Rfd8 {[%emt 0:06:03]} 20. e3 {[%emt 0:00:18]} Rac8 {[%emt 0:09:09]} 21. Nc4 {[%emt 0:10:12]} Qc7 {[%emt 0:00:44]} 22. f4 {[%emt 0:00:12]} Nb6 {[%emt 0:11:30]} 23. Nxa5 {[%emt 0:00:37]} Nd5 {[%emt 0:00:16]} 24. Bxd5 {[%emt 0:00:08]} cxd5 {[%emt 0:01:38]} 25. Qxc7 {[%emt 0:03:34]} Rxc7 {[%emt 0:00:03]} 26. Rc1 {[%emt 0:00:24]} Rdc8 {[%emt 0:00:04]} 27. Nb3 {[%emt 0:00:13]} Rc4 {[%emt 0:00:11]} 28. Nc5 {[%emt 0:05:02]} Rb4 {[%emt 0:04:14]} 29. Nd3 {[%emt 0:00:55]} Rxc1 {[%emt 0:02:28]} 30. Rxc1 {[%emt 0:00:02]} Rxa4 {[%emt 0:00:49]} 31. Rc8+ {[%emt 0:00:47]} Kh7 {[%emt 0:00:02]} 32. Rc7 {[%emt 0:00:06]} Ra1+ {[%emt 0:01:11]} 33. Kg2 {[%emt 0:00:07]} b6 {[%emt 0:04:17]} 34. Rxf7 {[%emt 0:02:14]} Rd1 {[%emt 0:00:25]} 35. Nf2 {[%emt 0:00:14]} Rb1 {[%emt 0:00:50]} 36. Rc7 {[%emt 0:00:25]} Rxb2 {[%emt 0:01:43]} 37. Rc6 {[%emt 0:00:05]} b5 {[%emt 0:00:48]} 38. Rxe6 {[%emt 0:00:59]} b4 {[%emt 0:00:15]} 39. Rb6 {[%emt 0:06:24]} h5 {[%emt 0:00:15]} 40. Rb5 {[%emt 0:06:02]} Rb3 {[%emt 0:00:27]} 41. Rxd5 {[%emt 0:01:09]} Rxe3 {[%emt 0:00:14]} 42. Rxh5+ {[%emt 0:00:06]} Kg6 {[%emt 0:00:07]} 43. Rb5 {[%emt 0:00:05]} Be7 {[%emt 0:05:19]} 44. Ng4 {[%emt 0:11:02]} Rc3 {[%emt 0:00:09]} 45. Rb7 {[%emt 0:08:25]} Bf8 {[%emt 0:01:04]} 46. Ne5+ {[%emt 0:02:01]} Kh7 {[%emt 0:00:09]} 47. Nd7 {[%emt 0:01:03]} Be7 {[%emt 0:00:59]} 48. Nc5 {[%emt 0:00:09]} Bxc5 {[%emt 0:00:42]} 49. dxc5 {[%emt 0:00:11]} Rxc5 {[%emt 0:00:22]} 50. Rxb4 {[%emt 0:00:06]} g6 {[%emt 0:01:15]} 51. h4 {[%emt 0:00:29]} Kh6 {[%emt 0:00:13]} 52. Kh3 {[%emt 0:00:08]} Ra5 {[%emt 0:00:16]} 53. Kg4 {[%emt 0:00:06]} 1-0